lending/lending_fUSD_20241228
["ID","MTS","AMOUNT","RATE_DAILY","PERIOD"]
[346926455,1735390234631,-500.0,0.00011648,2]
[346926456,1735390234640,-723.82,0.00011648,2]
[346926457,1735390234649,-353.12,0.00011648,2]
[346926458,1735390234659,-500.0,0.00011648,2]
[346926459,1735390234669,-500.0,0.00011648,2]
[346926460,1735390234679,-631.63825782,0.00011648,2]
[346926461,1735390234688,-500.0,0.00011648,2]
[346926462,1735390234698,-500.0,0.00011648,2]
[346926463,1735390234707,-500.0,0.00011648,2]
[346926464,1735390234716,-409.0,0.00011648,2]
[346926465,1735390234725,-500.0,0.00011648,2]
[346926466,1735390234735,-500.0,0.00011648,2]
[346926467,1735390234746,-442.743987,0.00011648,2]
[346926468,1735390234755,-402.21717,0.00011648,2]
[346926469,1735390234765,-591.0,0.00011648,2]
[346926470,1735390234774,-500.0,0.00011648,2]
[346926471,1735390234784,-2080.28,0.00011648,2]
[346926472,1735390234794,-397.76,0.00011648,2]
[346926473,1735390234803,-500.0,0.00011648,2]
[346926474,1735390234812,-433.32,0.00011648,2]
[346926475,1735390234822,-500.0,0.00011648,2]
[346926476,1735390234831,-500.0,0.00011648,2]
[346926477,1735390234840,-500.0,0.00011648,2]
[346926478,1735390234850,-500.0,0.00011648,2]
[346926479,1735390234859,-500.0,0.00011648,2]
[346926480,1735390234869,-500.0,0.00011648,2]
[346926481,1735390234878,-500.0,0.00011648,2]
[346926482,1735390234887,-500.0,0.00011648,2]
[346926483,1735390234896,-598.6,0.00011648,2]
[346926484,1735390234905,-500.0,0.00011648,2]
[346926485,1735390234914,-500.0,0.00011648,2]
[346926486,1735390234923,-500.0,0.00011648,2]
[346926487,1735390234932,-500.0,0.00011648,2]
[346926488,1735390234942,-500.0,0.00011648,2]
[346926489,1735390234951,-500.0,0.00011648,2]
[346926490,1735390234961,-500.0,0.00011648,2]
[346926491,1735390234970,-271.80021803,0.00011648,2]
[346926492,1735390234979,-500.0,0.00011648,2]
[346926493,1735390234989,-500.0,0.00011648,2]
[346926494,1735390234998,-2935.78,0.00011648,2]
[346926495,1735390235008,-500.0,0.00011648,2]
[346926496,1735390235017,-500.0,0.00011648,2]
[346926497,1735390235027,-500.0,0.00011648,2]
[346926498,1735390235036,-500.0,0.00011648,2]
[346926499,1735390235045,-500.0,0.00011648,2]
[346926500,1735390235055,-500.0,0.00011648,2]
[346926501,1735390235064,-500.0,0.00011648,2]
[346926502,1735390235073,-500.0,0.00011648,2]
[346926503,1735390235082,-466.32,0.00011648,2]
[346926504,1735390235091,-500.0,0.00011648,2]
[346926505,1735390235100,-500.0,0.00011648,2]
[346926506,1735390235109,-500.0,0.00011648,2]
[346926507,1735390235119,-500.0,0.00011648,2]
[346926508,1735390235321,-500.0,0.00011648,2]
[346926509,1735390235334,-203.8,0.00011648,2]
[346926510,1735390235344,-500.0,0.00011648,2]
[346926511,1735390235353,-500.0,0.00011648,2]
[346926512,1735390235363,-500.0,0.00011648,2]
[346926513,1735390235372,-500.0,0.00011648,2]
[346926514,1735390235382,-500.0,0.00011648,2]
[346926515,1735390235391,-500.0,0.00011648,2]
[346926516,1735390235400,-1240.33,0.00011648,2]
[346926517,1735390235409,-500.0,0.00011648,2]
[346926518,1735390235419,-500.0,0.00011648,2]
[346926519,1735390235427,-621.41922378,0.00011648,2]
[346926520,1735390235436,-500.0,0.00011648,2]
[346926521,1735390235446,-500.0,0.00011648,2]
[346926522,1735390235455,-500.0,0.00011648,2]
[346926523,1735390235464,-1645.77,0.00011648,2]
[346926524,1735390235473,-500.0,0.00011648,2]
[346926525,1735390235483,-500.0,0.00011648,2]
[346926526,1735390235492,-500.0,0.00011648,2]
[346926527,1735390235501,-500.0,0.00011648,2]
[346926528,1735390235510,-500.0,0.00011648,2]
[346926529,1735390235519,-1118.24,0.00011648,2]
[346926530,1735390235528,-500.0,0.00011648,2]
[346926531,1735390235537,-500.0,0.00011648,2]
[346926532,1735390235548,-500.0,0.00011648,2]
[346926533,1735390235557,-500.0,0.00011648,2]
[346926534,1735390235566,-500.0,0.00011648,2]
[346926535,1735390235575,-227.98013451,0.00011648,2]
[346926536,1735390235585,-500.0,0.00011648,2]
[346926537,1735390235594,-7577.17275075,0.00011648,2]
[346926538,1735390235603,-500.0,0.00011648,2]
[346926539,1735390235612,-500.0,0.00011648,2]
[346926540,1735390235622,-452.44844512,0.00011648,2]
[346926541,1735390235631,-362.36,0.00011648,2]
[346926542,1735390235641,-500.0,0.00011648,2]
[346926543,1735390235652,-500.0,0.00011648,2]
[346926544,1735390235661,-500.0,0.00011648,2]
[346926545,1735390235671,-500.0,0.00011648,2]
[346926546,1735390235682,-500.0,0.00011648,2]
[346926547,1735390235693,-500.0,0.00011648,2]
[346926548,1735390235703,-500.0,0.00011648,2]
[346926549,1735390235712,-500.0,0.00011648,2]
[346926550,1735390235723,-881.69,0.00011648,2]
[346926551,1735390235735,-500.0,0.00011648,2]
[346926552,1735390235748,-500.0,0.00011648,2]
[346926553,1735390235759,-500.0,0.00011648,2]
[346926554,1735390235769,-500.0,0.00011648,2]
[346926555,1735390235778,-1032.76,0.00011648,2]
[346926556,1735390235787,-500.0,0.00011648,2]
[346926557,1735390235798,-500.0,0.00011648,2]
[346926558,1735390235808,-3164.4758,0.00011648,2]
[346926559,1735390235818,-37045.4753,0.00011649,2]
[346926560,1735390235827,-576.1737,0.00011649,2]
[346926561,1735390235837,-9414.0594,0.00011649,2]
[346926562,1735390235846,-500.0,0.0001165,2]
[346926563,1735390235856,-150.0,0.00011662,2]
[346926564,1735390235865,-150.0,0.00011673,2]
[346926565,1735390235875,-150.0,0.00011696,2]
[346926566,1735390235884,-8400.0,0.000117,4]
[346926567,1735390235893,-150.0,0.00011707,2]
[346926568,1735390235902,-200.0,0.00011723,2]
[346926569,1735390235912,-877.05,0.00011746,2]
[346926570,1735390235921,-1855.16,0.00011746,2]
[346926571,1735390235930,-962.79,0.00011746,2]
[346926572,1735390235939,-500.0,0.00011747,2]
[346926573,1735390235948,-1034.21,0.00011747,2]
[346926574,1735390235957,-500.0,0.00011747,2]
[346926575,1735390235967,-500.0,0.00011747,2]
[346926576,1735390235976,-549.22,0.00011747,2]
[346926577,1735390235985,-500.0,0.00011747,2]
[346926578,1735390235994,-500.0,0.00011747,2]
[346926579,1735390236003,-1103.16,0.00011747,2]
[346926580,1735390236013,-780.97,0.00011747,2]
[346926581,1735390236022,-500.0,0.00011747,2]
[346926582,1735390236031,-500.0,0.00011747,2]
[346926583,1735390236041,-638.39,0.00011747,2]
[346926584,1735390236051,-500.0,0.00011747,2]
[346926585,1735390236060,-377.44,0.00011747,2]
[346926586,1735390236070,-624.65,0.00011747,2]
[346926587,1735390236080,-500.0,0.00011747,2]
[346926588,1735390236089,-2214.63,0.00011747,2]
[346926589,1735390236099,-2940.96,0.00011747,2]
[346926590,1735390236108,-500.0,0.00011747,2]
[346926591,1735390236117,-500.0,0.00011747,2]
[346926592,1735390236126,-1232.82,0.00011747,2]
[346926593,1735390236135,-500.0,0.00011747,2]
[346926594,1735390236144,-500.0,0.00011747,2]
[346926595,1735390236154,-500.0,0.00011747,2]
[346926596,1735390236163,-500.0,0.00011747,2]
[346926597,1735390236172,-508.53,0.00011747,2]
[346926598,1735390236181,-526.42,0.00011747,2]
[346926599,1735390236190,-1501.13,0.00011748,2]
[346926600,1735390236200,-3751.5,0.00011748,2]
[346926601,1735390236209,-500.0,0.00011748,2]
[346926602,1735390236218,-625.93,0.00011748,2]
[346926603,1735390236227,-755.29,0.00011748,2]
[346926604,1735390236236,-1425.81,0.00011748,2]
[346926605,1735390236245,-867.71,0.00011748,2]
[346926606,1735390236254,-500.0,0.00011748,2]
[346926607,1735390236263,-977.99,0.00011748,2]
[346926608,1735390236273,-500.0,0.00011748,2]
[346926609,1735390236282,-1849.95,0.00011748,2]
[346926610,1735390236291,-500.0,0.00011748,2]
[346926611,1735390236301,-500.0,0.00011748,2]
[346926612,1735390236310,-500.0,0.00011748,2]
[346926613,1735390236319,-3087.04,0.00011748,2]
[346926614,1735390236328,-500.0,0.00011748,2]
[346926615,1735390236338,-500.0,0.00011748,2]
[346926616,1735390236347,-500.0,0.00011748,2]
[346926617,1735390236356,-2812.45,0.00011748,2]
[346926618,1735390236365,-500.0,0.00011748,2]
[346926619,1735390236374,-500.0,0.00011748,2]
[346926620,1735390236384,-213.79,0.00011748,2]
[346926621,1735390236393,-17268.35,0.00011748,2]
[346926622,1735390236402,-500.0,0.00011748,2]
[346926623,1735390236412,-1264.7,0.00011748,2]
[346926624,1735390236421,-500.0,0.00011748,2]
[346926625,1735390236430,-500.0,0.00011748,2]
[346926626,1735390236439,-500.0,0.00011748,2]
[346926627,1735390236449,-1424.76,0.00011748,2]
[346926628,1735390236458,-500.0,0.00011748,2]
[346926629,1735390236467,-500.0,0.00011748,2]
[346926630,1735390236476,-500.0,0.00011748,2]
[346926631,1735390236485,-1217.17,0.00011748,2]
[346926632,1735390236496,-500.0,0.00011748,2]
[346926633,1735390236507,-471.29832556,0.00011748,2]
[346926634,1735390236517,-211.03673918,0.00011748,2]
[346926635,1735390236527,-500.0,0.00011748,2]
[346926636,1735390236536,-500.0,0.00011748,2]
[346926637,1735390236546,-860.49,0.00011748,2]
[346926638,1735390236555,-500.0,0.00011748,2]
[346926639,1735390236564,-500.0,0.00011748,2]
[346926640,1735390236574,-529.75,0.00011748,2]
[346926641,1735390236583,-504.09120856,0.00011748,2]
[346926642,1735390236592,-500.0,0.00011748,2]
[346926643,1735390236603,-4596.17,0.00011748,2]
[346926644,1735390236612,-280.0,0.00011748,2]
[346926645,1735390236621,-500.0,0.00011748,2]
[346926646,1735390236630,-500.0,0.00011748,2]
[346926647,1735390236641,-500.0,0.00011748,2]
[346926648,1735390236651,-500.0,0.00011748,2]
[346926649,1735390236660,-500.0,0.00011748,2]
[346926650,1735390236671,-500.0,0.00011748,2]
[346926651,1735390236680,-500.0,0.00011748,2]
[346926652,1735390236690,-2288.69,0.00011748,2]
[346926653,1735390236700,-500.0,0.00011748,2]
[346926654,1735390236709,-3496.03,0.00011748,2]
[346926655,1735390236721,-260.64712107,0.00011748,2]
[346926656,1735390236730,-500.0,0.00011748,2]
[346926657,1735390236740,-9522.62,0.00011748,2]
[346926658,1735390236754,-500.0,0.00011748,2]
[346926659,1735390236766,-500.0,0.00011748,2]
[346926660,1735390236776,-500.0,0.00011748,2]
[346926661,1735390236787,-500.0,0.00011748,2]
[346926662,1735390236798,-547.93,0.00011748,2]
[346926663,1735390236808,-1360.46,0.00011748,2]
[346926664,1735390236817,-1549.79,0.00011748,2]
[346926665,1735390236827,-3000.0,0.00011748,2]
[346926666,1735390236836,-6101.63,0.00011748,2]
[346926667,1735390236846,-1513.18,0.00011748,2]
[346926668,1735390236855,-1062.44,0.00011748,2]
[346926669,1735390236864,-2863.41,0.00011748,2]
[346926670,1735390236873,-786.74,0.00011748,2]
[346926671,1735390236882,-601.24,0.00011748,2]
[346926672,1735390236891,-926.61,0.00011748,2]
[346926673,1735390236901,-1415.31,0.00011748,2]
[346926674,1735390236909,-1468.5,0.00011748,2]
[346926675,1735390236918,-1117.71,0.00011748,2]
[346926676,1735390236927,-825.73,0.00011748,2]
[346926677,1735390236936,-956.94,0.00011748,2]
[346926678,1735390236945,-500.0,0.00011749,2]
[346926679,1735390236954,-2689.76,0.00011749,2]
[346926680,1735390236963,-1247.7,0.00011749,2]
[346926681,1735390236973,-2692.01,0.00011749,2]
[346926682,1735390236981,-2129.45,0.00011749,2]
[346926683,1735390236990,-5154.25,0.00011749,2]
[346926684,1735390236999,-800.74,0.00011749,2]
[346926685,1735390237008,-1633.11,0.00011749,2]
[346926686,1735390237017,-2052.31,0.00011749,2]
[346926687,1735390237026,-1699.1,0.00011749,2]
[346926688,1735390237036,-500.0,0.00011749,2]
[346926689,1735390237045,-188.252358,0.0001175,2]
[346926690,1735390237056,-188.252358,0.0001175,2]
[346926691,1735390237066,-150.0,0.00011751,2]
[346926692,1735390237075,-150.0,0.00011773,2]
[346926693,1735390237084,-150.0,0.00011788,2]
[346926694,1735390237094,-150.0,0.00011795,2]
[346926695,1735390237104,-11200.0,0.000118,4]
[346926696,1735390237116,-151.0,0.000118,2]
[346926697,1735390237126,-208.531438,0.000118,2]
[346926698,1735390237135,-150.0,0.0001184,2]
[346926699,1735390237145,-1057.0,0.00011847,2]
[346926700,1735390237153,-151.0,0.00011847,2]
[346926701,1735390237163,-150.0,0.00011873,2]
[346926702,1735390237172,-150.0,0.00011881,2]
[346926703,1735390237182,-150.0,0.00011884,2]
[346926704,1735390237191,-69300.7016,0.00011899,2]
[346926705,1735390237200,-4228.31922755,0.00011899,2]
[346926706,1735390237209,-1306899.39328157,0.00011899,2]
[346926707,1735390237219,-23341.7450441,0.000119,2]
[346926708,1735390237228,-812.15878175,0.000119,2]
[346926709,1735390237237,-170.06627709,0.000119,2]
[346926711,1735390237246,-14000.0,0.000119,4]
[346926712,1735390237256,-500.0,0.00011922,2]
[346926713,1735390237265,-500.0,0.00011922,2]
[346926714,1735390237274,-500.0,0.00011922,2]
[346926715,1735390237283,-500.0,0.00011922,2]
[346926716,1735390237292,-723.82,0.00011922,2]
[346926717,1735390237302,-500.0,0.00011922,2]
[346926718,1735390237312,-500.0,0.00011922,2]
[346926719,1735390237320,-500.0,0.00011922,2]
[346926720,1735390237330,-500.0,0.00011922,2]
[346926721,1735390237339,-500.0,0.00011922,2]
[346926722,1735390237348,-500.0,0.00011922,2]
[346926723,1735390237357,-500.0,0.00011922,2]
[346926724,1735390237366,-442.743987,0.00011922,2]
[346926725,1735390237375,-402.21717,0.00011922,2]
[346926726,1735390237384,-556.70097735,0.00011922,2]
[346926727,1735390237393,-2080.28,0.00011922,2]
[346926728,1735390237403,-500.0,0.00011922,2]
[346926729,1735390237412,-612.36,0.00011922,2]
[346926730,1735390237421,-500.0,0.00011922,2]
[346926731,1735390237430,-500.0,0.00011922,2]
[346926732,1735390237440,-500.0,0.00011922,2]
[346926733,1735390237449,-500.0,0.00011922,2]
[346926734,1735390237458,-500.0,0.00011922,2]
[346926735,1735390237468,-500.0,0.00011922,2]
[346926736,1735390237477,-500.0,0.00011922,2]
[346926737,1735390237487,-500.0,0.00011922,2]
[346926738,1735390237496,-500.0,0.00011922,2]
[346926739,1735390237508,-500.0,0.00011922,2]
[346926740,1735390237518,-500.0,0.00011922,2]
[346926741,1735390237527,-500.0,0.00011922,2]
[346926742,1735390237537,-500.0,0.00011922,2]
[346926743,1735390237546,-500.0,0.00011922,2]
[346926744,1735390237555,-500.0,0.00011922,2]
[346926745,1735390237565,-500.0,0.00011922,2]
[346926746,1735390237573,-2935.78,0.00011922,2]
[346926747,1735390237583,-500.0,0.00011922,2]
[346926748,1735390237592,-500.0,0.00011922,2]
[346926749,1735390237602,-500.0,0.00011922,2]
[346926750,1735390237611,-604.32,0.00011922,2]
[346926751,1735390237620,-500.0,0.00011922,2]
[346926752,1735390237629,-500.0,0.00011922,2]
[346926753,1735390237638,-500.0,0.00011922,2]
[346926754,1735390237647,-500.0,0.00011922,2]
[346926755,1735390237656,-500.0,0.00011922,2]
[346926756,1735390237666,-500.0,0.00011922,2]
[346926757,1735390237675,-500.0,0.00011922,2]
[346926758,1735390237684,-500.0,0.00011922,2]
[346926759,1735390237694,-500.0,0.00011922,2]
[346926760,1735390237704,-500.0,0.00011922,2]
[346926761,1735390237713,-601.44,0.00011922,2]
[346926762,1735390237723,-421.04,0.00011922,2]
[346926763,1735390237733,-500.0,0.00011922,2]
[346926764,1735390237743,-500.0,0.00011922,2]
[346926765,1735390237757,-500.0,0.00011922,2]
[346926766,1735390237767,-1240.33,0.00011922,2]
[346926767,1735390237777,-500.0,0.00011922,2]
[346926768,1735390237787,-500.0,0.00011922,2]
[346926769,1735390237796,-500.0,0.00011922,2]
[346926770,1735390237805,-500.0,0.00011922,2]
[346926771,1735390237814,-500.0,0.00011922,2]
[346926772,1735390237824,-1645.77,0.00011922,2]
[346926773,1735390237834,-500.0,0.00011922,2]
[346926774,1735390237843,-500.0,0.00011922,2]
[346926775,1735390237854,-500.0,0.00011922,2]
[346926776,1735390237864,-500.0,0.00011922,2]
[346926777,1735390237873,-500.0,0.00011922,2]
[346926778,1735390237883,-500.0,0.00011922,2]
[346926779,1735390237892,-1118.24,0.00011922,2]
[346926780,1735390237901,-500.0,0.00011922,2]
[346926781,1735390237911,-500.0,0.00011922,2]
[346926782,1735390237921,-500.0,0.00011922,2]
[346926783,1735390237931,-500.0,0.00011922,2]
[346926784,1735390237940,-642.248141,0.00011922,2]
[346926785,1735390237949,-500.0,0.00011922,2]
[346926787,1735390237959,-500.0,0.00011922,2]
[346926789,1735390237968,-500.0,0.00011922,2]
[346926790,1735390237976,-500.0,0.00011922,2]
[346926791,1735390237985,-500.0,0.00011922,2]
[346926792,1735390237995,-500.0,0.00011922,2]
[346926793,1735390238005,-500.0,0.00011922,2]
[346926794,1735390238013,-500.0,0.00011922,2]
[346926795,1735390238023,-500.0,0.00011922,2]
[346926796,1735390238032,-369.97903821,0.00011922,2]
[346926797,1735390238041,-881.69,0.00011922,2]
[346926798,1735390238050,-500.0,0.00011922,2]
[346926799,1735390238059,-500.0,0.00011922,2]
[346926800,1735390238068,-151.0,0.00011922,2]
[346926801,1735390238078,-500.0,0.00011922,2]
[346926802,1735390238088,-500.0,0.00011922,2]
[346926803,1735390238098,-500.0,0.00011922,2]
[346926804,1735390238107,-1032.76,0.00011922,2]
[346926805,1735390238116,-500.0,0.00011922,2]
[346926806,1735390238125,-150.0,0.00011928,2]
[346926807,1735390238135,-151.0,0.00011972,2]
[346926808,1735390238144,-500.0,0.00011972,2]
[346926809,1735390238153,-1800.0,0.00011972,2]
[346926810,1735390238163,-500.0,0.00011972,2]
[346926811,1735390238173,-500.0,0.00011973,2]
[346926812,1735390238183,-192.50218011,0.00011973,2]
[346926813,1735390238192,-150.0,0.00011973,2]
[346926814,1735390238202,-289.95782607,0.00011973,2]
[346926815,1735390238211,-500.40573865,0.00011973,2]
[346926816,1735390238225,-150.0,0.00011973,2]
[346926817,1735390238234,-261.63712171,0.00011973,2]
[346926818,1735390238244,-500.0,0.00011973,2]
[346926819,1735390238253,-500.0,0.00011973,2]
[346926820,1735390238262,-1387.0,0.00011998,2]
[346926821,1735390238271,-94925.34350253,0.00011999,2]
[346926822,1735390238280,-188.252358,0.00011999,2]
[346926823,1735390238290,-188.252358,0.00011999,2]
[346926824,1735390238299,-558.76,0.00011999,2]
[346926825,1735390238309,-500.0,0.00011999,2]
[346926826,1735390238318,-500.0,0.00011999,2]
[346926827,1735390238328,-500.0,0.00011999,2]
[346926828,1735390238337,-608518.68578502,0.00012,2]
[346926829,1735390238347,-8693.37165058,0.00012,2]
[346926830,1735390238356,-2067.92793209,0.00012,2]
[346926831,1735390238366,-259.65,0.00012,2]
[346926832,1735390238375,-259.65,0.00012,2]
[346926833,1735390238385,-450.0,0.00012,2]
[346926834,1735390238394,-188.252358,0.00012,2]
[346926835,1735390238403,-188.252358,0.00012,2]
[346926836,1735390238412,-151.0,0.00012,2]
[346926837,1735390238422,-151.0,0.00012,2]
[346926838,1735390238431,-2775.4847704,0.00012012,2]
[346926839,1735390238441,-877.05,0.0001202,2]
[346926840,1735390238451,-1855.16,0.0001202,2]
[346926841,1735390238460,-962.79,0.0001202,2]
[346926842,1735390238471,-503.92,0.00012021,2]
[346926843,1735390238481,-1034.21,0.00012021,2]
[346926844,1735390238490,-500.0,0.00012021,2]
[346926845,1735390238502,-500.0,0.00012021,2]
[346926846,1735390238512,-549.22,0.00012021,2]
[346926847,1735390238522,-500.0,0.00012021,2]
[346926848,1735390238534,-500.0,0.00012021,2]
[346926849,1735390238544,-1103.16,0.00012021,2]
[346926850,1735390238554,-780.97,0.00012021,2]
[346926851,1735390238563,-500.0,0.00012021,2]
[346926852,1735390238575,-500.0,0.00012021,2]
[346926853,1735390238590,-638.39,0.00012021,2]
[346926854,1735390238600,-439.91236627,0.00012021,2]
[346926855,1735390238611,-624.65,0.00012021,2]
[346926856,1735390238621,-500.0,0.00012021,2]
[346926857,1735390238630,-2214.63,0.00012021,2]
[346926858,1735390238641,-2940.96,0.00012021,2]
[346926859,1735390238651,-500.0,0.00012021,2]
[346926860,1735390238662,-264.11,0.00012021,2]
[346926861,1735390238672,-1232.82,0.00012021,2]
[346926862,1735390238682,-500.0,0.00012021,2]
[346926863,1735390238692,-500.0,0.00012021,2]
[346926864,1735390238702,-500.0,0.00012021,2]
[346926865,1735390238714,-603.48,0.00012021,2]
[346926866,1735390238723,-508.53,0.00012021,2]
[346926867,1735390238731,-526.42,0.00012021,2]
[346926868,1735390238740,-1501.13,0.00012022,2]
[346926869,1735390238753,-3751.5,0.00012022,2]
[346926870,1735390238762,-500.0,0.00012022,2]
[346926871,1735390238771,-625.93,0.00012022,2]
[346926872,1735390238782,-755.29,0.00012022,2]
[346926873,1735390238791,-1425.81,0.00012022,2]
[346926874,1735390238802,-867.71,0.00012022,2]
[346926875,1735390238811,-500.0,0.00012022,2]
[346926876,1735390238821,-977.99,0.00012022,2]
[346926877,1735390238831,-225.32,0.00012022,2]
[346926878,1735390238841,-1849.95,0.00012022,2]
[346926879,1735390238851,-500.0,0.00012022,2]
[346926880,1735390238860,-500.0,0.00012022,2]
[346926881,1735390238869,-500.0,0.00012022,2]
[346926882,1735390238880,-3087.04,0.00012022,2]
[346926883,1735390238889,-500.0,0.00012022,2]
[346926884,1735390238899,-500.0,0.00012022,2]
[346926885,1735390238908,-500.0,0.00012022,2]
[346926886,1735390238917,-2812.45,0.00012022,2]
[346926887,1735390238926,-500.0,0.00012022,2]
[346926888,1735390238936,-500.0,0.00012022,2]
[346926889,1735390238945,-17268.35,0.00012022,2]
[346926890,1735390238954,-500.0,0.00012022,2]
[346926891,1735390238963,-1264.7,0.00012022,2]
[346926892,1735390238972,-500.0,0.00012022,2]
[346926893,1735390238982,-500.0,0.00012022,2]
[346926894,1735390238991,-500.0,0.00012022,2]
[346926895,1735390239000,-1424.76,0.00012022,2]
[346926896,1735390239009,-500.0,0.00012022,2]
[346926897,1735390239019,-500.0,0.00012022,2]
[346926898,1735390239028,-500.0,0.00012022,2]
[346926899,1735390239037,-1217.17,0.00012022,2]
[346926900,1735390239046,-500.0,0.00012022,2]
[346926901,1735390239057,-500.0,0.00012022,2]
[346926902,1735390239066,-500.0,0.00012022,2]
[346926903,1735390239075,-860.49,0.00012022,2]
[346926904,1735390239084,-500.0,0.00012022,2]
[346926905,1735390239093,-500.0,0.00012022,2]
[346926906,1735390239103,-529.75,0.00012022,2]
[346926907,1735390239113,-500.0,0.00012022,2]
[346926908,1735390239123,-4596.17,0.00012022,2]
[346926909,1735390239132,-500.0,0.00012022,2]
[346926910,1735390239142,-180.7997366,0.00012022,2]
[346926911,1735390239151,-500.0,0.00012022,2]
[346926912,1735390239160,-500.0,0.00012022,2]
[346926913,1735390239169,-500.0,0.00012022,2]
[346926914,1735390239179,-2288.69,0.00012022,2]
[346926915,1735390239189,-500.0,0.00012022,2]
[346926916,1735390239198,-3496.03,0.00012022,2]
[346926917,1735390239208,-500.0,0.00012022,2]
[346926918,1735390239217,-9522.62,0.00012022,2]
[346926919,1735390239227,-500.0,0.00012022,2]
[346926920,1735390239236,-500.0,0.00012022,2]
[346926921,1735390239245,-201.36,0.00012022,2]
[346926922,1735390239255,-500.0,0.00012022,2]
[346926923,1735390239264,-547.93,0.00012022,2]
[346926924,1735390239273,-1360.46,0.00012022,2]
[346926925,1735390239448,-1549.79,0.00012022,2]
[346926926,1735390239458,-6101.63,0.00012022,2]
[346926927,1735390239467,-1513.18,0.00012022,2]
[346926928,1735390239477,-1062.44,0.00012022,2]
[346926929,1735390239486,-2863.41,0.00012022,2]
[346926930,1735390239495,-786.74,0.00012022,2]
[346926931,1735390239505,-601.24,0.00012022,2]
[346926932,1735390239514,-926.61,0.00012022,2]
[346926933,1735390239526,-1415.31,0.00012022,2]
[346926934,1735390239537,-1468.5,0.00012022,2]
[346926935,1735390239549,-1117.71,0.00012022,2]
[346926936,1735390239558,-825.73,0.00012022,2]
[346926937,1735390239567,-259.65,0.00012023,2]
[346926938,1735390239577,-259.65,0.00012023,2]
[346926939,1735390239586,-188.252358,0.00012023,2]
[346926940,1735390239596,-188.252358,0.00012023,2]
[346926941,1735390239606,-151.0,0.00012023,2]
[346926942,1735390239615,-2689.76,0.00012023,2]
[346926943,1735390239626,-1247.7,0.00012023,2]
[346926944,1735390239635,-2692.01,0.00012023,2]
[346926945,1735390239647,-2129.45,0.00012023,2]
[346926946,1735390239656,-5154.25,0.00012023,2]
[346926947,1735390239666,-800.74,0.00012023,2]
[346926948,1735390239675,-151.0,0.00012023,2]
[346926949,1735390239685,-1633.11,0.00012023,2]
[346926950,1735390239694,-2052.31,0.00012023,2]
[346926951,1735390239704,-1699.1,0.00012023,2]
[346926952,1735390239714,-500.0,0.00012023,2]
[346926953,1735390239724,-30000.0,0.00012094,2]
[346926954,1735390239733,-201.0,0.00012132,2]
[346926955,1735390239743,-558.76,0.00012136,2]
[346926956,1735390239757,-158.58759971,0.00012137,2]
[346926957,1735390239767,-215.0,0.00012156,2]